Cogmind - Beta 11.2 @@@ ROGUE MODE // 2023.02.24 @ 17:25:42 Player: Red Box Result: Destroyed self with Light Ion Engine chain reaction Performance ------------- Evolutions (0) 0 Regions Visited (2) 400 Robots Destroyed (21) 105 Value Destroyed (355) 355 Prototype IDs (3) 60 Alien Tech Used (0) 0 Bonus (0) 0 TOTAL SCORE: 920 Bonus ------- None Cogmind --------- Core Integrity 0/250 Matter 290/300 Energy 203/250 System Corruption 0% Temperature Cool (12) Movement Rolling (140) Ox4 Location -10/Mines Parts ------- > --- POWER (1) -------- Ion Engine > --- PROPULSION (2) --- Light Treads Wheel > --- UTILITY (2) ------ Heat Sink High-capacity Storage Unit > --- WEAPON (2) ------- EM Pulse Gun EM Pulse Gun > --- INVENTORY (20) --- Wheel Wheel Compact Wheel High-capacity Matter Pod (50) Improved Terrain Scanner Targeting Computer Light Armor Plating Light Armor Plating EM Pulse Gun EM Pulse Gun EM Pulse Gun Beam Cannon Beam Cannon Battle Cannon Bore Cannon Rocket Launcher Mining Claw Peak State ------------ > --- POWER ------------ Light Ion Engine > --- PROPULSION ------- Aluminum Leg Aluminum Leg > --- UTILITY ---------- Small Storage Unit Improved Terrain Scanner > --- WEAPON ----------- Small Laser Assault Rifle > --- INVENTORY -------- Light Treads Light Treads Wheel Wheel Wheel Wheel Compact Wheel EM Pulse Gun [Rating: 9] Favorites ----------- Power Ion Engine Engine Ion Engine Propulsion Wheel Treads Light Treads Leg Aluminum Leg Wheel Wheel Utility Large Storage Unit Device Heat Sink Storage Large Storage Unit Protection Light Armor Plating Weapon Assault Rifle Energy Gun EM Pulse Gun Ballistic Gun Assault Rifle Launcher Grenade Launcher Build | -11 -10 -10 ------- Run | Scr Mat Min Slots Evolved . | . . . Power . | . . . Propulsion . | . . . Utility . | . . . Weapon . | . . . Parts Attached 31 | 8 13 10 Power 3 | 1 2 . Engine 3 | 1 2 . Core . | . . . Reactor . | . . . Propulsion 11 | 2 6 3 Treads 4 | . 2 2 Leg 2 | 2 . . Wheel 5 | . 4 1 Hover . | . . . Flight . | . . . Utility 7 | 2 2 3 Device 3 | 1 1 1 Storage 3 | 1 1 1 Processor . | . . . Hackware . | . . . Protection 1 | . . 1 Artifact . | . . . Weapon 10 | 3 3 4 Energy Gun 6 | 2 2 2 Energy Cannon . | . . . Ballistic Gun 2 | 1 1 . Ballistic Cannon . | . . . Launcher 2 | . . 2 Special Weapon . | . . . Impact Weapon . | . . . Slashing Weapon . | . . . Piercing Weapon . | . . . Special Melee Weapon . | . . . Unidentified Prototypes . | . . . Parts Lost 2 | . 2 . Power . | . . . Propulsion 1 | . 1 . Utility 1 | . 1 . Weapon . | . . . Highest Loss Streak 2 | . 2 . To Critical Strikes . | . . . Average Slot Usage (%) 98 | . 97 100 Engine 14 | . 14 14 Treads 5 | . 2 11 Leg 2 | . 3 . Wheel 19 | . 21 16 Device 11 | . 11 12 Storage 14 | . 14 14 Energy Gun 14 | . 8 27 Ballistic Gun 13 | . 19 . Naked Turns . | . . . Heaviest Build 50 | 12 30 50 Greatest Support 40 | 20 26 40 Greatest Overweight (x) 4 | 2 1 4 Average Overweight (x) . | . . 1 Largest Inventory Capacity 20 | 8 15 20 Average Capacity 12 | 7 11 15 Most Carried 17 | 8 15 17 Average Carried 11 | 6 10 15 Final Capacity 20 | 8 15 20 Final Carried 17 | 8 15 17 Class Distribution -------------------- 100% | Mutant Dominant Class ---------------- Mutant | -10/Materials Mutant | -10/Mines Resources | -11 -10 -10 ----------- Run | Scr Mat Min Matter Collected 816 | 310 309 197 Remotely . | . . . Salvage Created 619 | 173 342 104 Parts 32 | 10 14 8 Haulers Intercepted . | . . . Recyclers Shooed . | . . . Parts Field Recycled . | . . . Retrieved Matter . | . . . Parts Self-Destructed . | . . . Prevented . | . . . Kills | -11 -10 -10 ------- Run | Scr Mat Min Combat Hostiles Destroyed 19 | . 9 10 Guns 15 | . 9 6 AOE 4 | . . 4 Classes Destroyed 6 | 2 3 1 Worker 1 | . 1 . Tunneler 4 | 4 . . Recycler 1 | 1 . . Swarmer 9 | . 3 6 Grunt 6 | . 6 . Assembled 4 | . . 4 Best Kill Streak 5 | 2 5 4 Combat Bots Only 5 | . 5 4 Max Kills in Single Turn 2 | 1 1 2 Gunslinging 1 | . . 1 Exploded 2 | . . 2 Melee . | . . . Uniques/NPCs Destroyed . | . . . Combat | -11 -10 -10 -------- Run | Scr Mat Min Damage Taken 855 | . 438 417 Core 277 | . 134 143 Absorbed by Shields . | . . . Core Remaining (%) 100 | 100 . . Volleys Fired 82 | 24 39 19 Largest 2 | 2 2 2 Hottest 80 | 60 60 80 Shots Fired 146 | 34 77 35 Gun 143 | 34 77 32 Cannon . | . . . Launcher 3 | . . 3 Special . | . . . Kinetic 82 | 10 72 . Thermal 19 | 14 5 . Explosive 3 | . . 3 Electromagnetic 42 | 10 . 32 Robot Hit Streak 7 | 7 5 3 Robot Miss Streak 3 | 3 3 3 Penetration Max . | . . . Secondary Targets 2 | . 1 1 Max Gunslinging Chain 1 | . 1 1 Shots Hit Robots 78 | 23 39 16 Core Hits 33 | 5 16 12 Critical Kills . | . . . Critical Parts Destroyed . | . . . Critical Strikes . | . . . Melee Attacks . | . . . Impact . | . . . Slashing . | . . . Piercing . | . . . Sneak Attacks . | . . . Combat Hostiles . | . . . Follow-up Attacks . | . . . Damage Inflicted 1300 | 315 559 426 Guns 994 | 276 559 159 Cannons . | . . . Explosions 306 | 39 . 267 Melee . | . . . Ramming . | . . . Kinetic 607 | 82 525 . Thermal 248 | 154 34 60 Explosive 207 | . . 207 Electromagnetic 238 | 79 . 159 Impact . | . . . Slashing . | . . . Piercing . | . . . Highest Corruption . | . . . Average Corruption . | . . . Corruption Purged . | . . . Corruption Blocked . | . . . Overload Shots . | . . . Overflow Damage 11 | 11 . . Projectiles . | . . . Explosions 11 | 11 . . Melee . | . . . Knockbacks . | . . . Impact . | . . . Kinetic . | . . . Secondary . | . . . Self-Inflicted Damage 40 | . . 40 Shots 1 | . . 1 Rammed . | . . . Targets Rammed . | . . . Kicked . | . . . Crushed . | . . . Highest Temperature 336 | . 18 336 Average Temperature 100 | . 7 135 Received Heat Transfer 297 | . 177 120 Effects 1 | . . 1 Shutdowns 1 | . . 1 Siege Activations . | . . . Robots Corrupted . | . . . Combat Hostiles . | . . . Parts Fried . | . . . Impact Corruptions . | . . . Robots Melted . | . . . Combat Hostiles . | . . . Parts Melted 1 | 1 . . Heat Transferred 425 | 300 75 50 Parts Sabotaged . | . . . Parts Stolen . | . . . Parts Stripped . | . . . Power Chain Reactions 2 | 1 . 1 Missiles Intercepted . | . . . Alert | -11 -10 -10 ------- Run | Scr Mat Min Peak Influence 306 | 25 306 99 Initial 16 | . 16 5 Average 56 | 11 72 37 Maximum Alert Level 1 | . 1 . Low Security (%) 93 | 100 89 100 Level 1 6 | . 10 . Level 2 . | . . . Level 3 . | . . . Level 4 . | . . . Level 5 . | . . . High Security . | . . . Max Security . | . . . Squads Dispatched . | . . . Investigation . | . . . Extermination . | . . . Reinforcement . | . . . Assault . | . . . Garrison . | . . . Intercept . | . . . Searches Triggered . | . . . Construction Impeded . | . . . Haulers Reinforced . | . . . Active Scanning Responses . | . . . Cargo Convoy Interrupts . | . . . Stealth | -11 -10 -10 --------- Run | Scr Mat Min Distress Signals 1 | . 1 . Communications Jammed . | . . . Distress Signals . | . . . Times Spotted 55 | . 27 28 Peak Tracking Total 12 | . 3 12 Tactical Retreats 3 | . 3 . Traps | -11 -10 -10 ------- Run | Scr Mat Min Traps Triggered . | . . . Indirectly . | . . . Trap Hack Attempts . | . . . Triggered . | . . . Disarmed . | . . . Reprogrammed . | . . . Reused . | . . . Traps Extracted . | . . . Installed . | . . . Triggered . | . . . Machines | -11 -10 -10 ---------- Run | Scr Mat Min Machines Disabled . | . . . Max in Single Turn . | . . . Machines Sabotaged . | . . . Garrisons Compromised . | . . . Overloaded Fab Kills . | . . . Hacking | -11 -10 -10 --------- Run | Scr Mat Min Machines Accessed 10 | . 10 . Terminals 8 | . 8 . Fabricators . | . . . Repair Stations . | . . . Recycling Units 2 | . 2 . Scanalyzers . | . . . Garrison Access . | . . . Total Hacks 36 | . 36 . Successful 20 | . 20 . Failed 15 | . 15 . Catastrophic . | . . . Database Lockouts 1 | . 1 . Manual 24 | . 24 . Terminals 29 | . 29 . Fabricators . | . . . Repair Stations . | . . . Recycling Units 7 | . 7 . Scanalyzers . | . . . Garrison Access . | . . . Terminal Hacks 9 | . 9 . Robot Analysis 4 | . 4 . Prototype ID Bank 1 | . 1 . Terminal Index 1 | . 1 . Unreport Threat 1 | . 1 . Locate Traps 2 | . 2 . Fabricator Hacks . | . . . Repair Station Hacks . | . . . Recycling Unit Hacks 2 | . 2 . Retrieve Components 2 | . 2 . Scanalyzer . | . . . Garrison Access Hacks . | . . . Unauthorized Hacks 9 | . 9 . Terminals 7 | . 7 . Track 2 | . 2 . Assimilate 1 | . 1 . Botnet 3 | . 3 . Operators 1 | . 1 . Fabricators . | . . . Repair Stations . | . . . Recycling Units 2 | . 2 . Reject 1 | . 1 . Mask 1 | . 1 . Scanalyzers . | . . . Garrison Access . | . . . Data Cores Recovered . | . . . Used . | . . . Hacking Detections 10 | . 10 . Full Trace Events . | . . . Feedback Events . | . . . Feedback Blocked . | . . . Robot Schematics Acquired . | . . . Robots Built . | . . . Authchips . | . . . Time . | . . . Total Robot Build Rating . | . . . Part Schematics Acquired . | . . . Parts Built . | . . . Authchips . | . . . Time . | . . . Total Part Build Rating . | . . . Parts Repaired . | . . . Time . | . . . Parts Recycled . | . . . Recycled Matter . | . . . Retrieved Matter . | . . . Retrieved Components 10 | . 10 . Parts Scanalyzed . | . . . Part Schematics Acquired . | . . . Parts Damaged . | . . . Bothacking | -11 -10 -10 ------------ Run | Scr Mat Min Used RIF Installer . | . . . Robots Hacked . | . . . Non-combat . | . . . Combat . | . . . Robot Hacks Applied . | . . . Relay Couplers Released . | . . . Fabnet Peak Effective % . | . . . Robots Rewired . | . . . Allies Hacked . | . . . Hacks Repelled . | . . . Allies | -11 -10 -10 -------- Run | Scr Mat Min Total Allies 1 | . 1 . Largest Group 1 | . 1 1 Highest-Rated Group 10 | . 10 10 Highest-Rated Ally 10 | . 10 10 Total Orders 5 | . 4 1 STAY 3 | . 2 1 FOLLOW 2 | . 2 . Ally Attacks . | . . . Total Damage . | . . . Kills . | . . . Allies Corrupted . | . . . Allies Melted . | . . . Intel | -11 -10 -10 ------- Run | Scr Mat Min Robot Analysis Total 4 | . 4 . Derelict Logs Recovered 2 | . . 2 Drone Launches . | . . . Drone Recoveries . | . . . Exploration | -11 -10 -10 ------------- Run | Scr Mat Min Turns Passed 2066 | 218 1252 596 Spaces Moved 1468 | 113 946 409 Core 10 | 10 . . Treads 126 | . 86 40 Legs 218 | 103 115 . Wheels 1114 | . 745 369 Hover . | . . . Flight . | . . . Fastest Speed 50 | 50 80 105 Average Speed 111 | 120 109 115 Slowest Speed 240 | 150 240 160 Overloaded Moves . | . . . Propulsion Burnouts . | . . . Robots Hopped . | . . . Cave-ins Triggered . | . . . Exploration Rate (%) 64 | 7 99 86 Regions Visited 2 Branch Regions 1 Pre-discovered Areas 1 | . . 1 Known Exits Taken . | . . . Unknown Exits Taken 2 | 1 1 . Scrap Searched 1 | . . 1 Spaces Dug . | . . . Terrain Destroyed 24 | 3 . 21 Melee . | . . . Projectile . | . . . AOE 24 | 3 . 21 Terrain Rammed . | . . . Walls Destroyed . | . . . Machines Disabled . | . . . Actions | -11 -10 -10 --------- Run | Scr Mat Min Total 1744 | 158 1086 500 Wait 115 | 2 61 52 Move 1466 | 112 945 409 Hop . | . . . Pick Up 32 | 10 17 5 Fast Attach 10 | 7 2 1 Attach 6 | . 6 . Detach . | . . . Swap 15 | 1 5 9 Drop 18 | 2 11 5 Fire 82 | 24 39 19 Melee . | . . . Ram . | . . . Kick . | . . . Crush . | . . . Escape Stasis . | . . . Rewire . | . . . Trap . | . . . Miscellaneous . | . . . Route ------- -11/Scrapyard -10/Materials (discovered 4 exits: [*Mat x3] / [*Min]) -10/Mines (discovered 2 exits: [*Mat] / [*Exi]) History --------- Turn | Location | Event 42 | -11/Scrapyard | Discovered new exit (range 15) 219 | -11/Scrapyard | Entered Materials 317 | -10/Materials | Build established: Mutant 400 | -10/Materials | Discovered new exit (range 10) 430 | -10/Materials | Central database locked down 464 | -10/Materials | Discovered new exit (range 14) 664 | -10/Materials | Discovered new exit (range 14) 718 | -10/Materials | Discovered new exit (range 6) 753 | -10/Materials | Core integrity fell below 50% 1471 | -10/Materials | Entered Mines 1471 | -10/Mines | Accompanied by 1 ally 1475 | -10/Mines | Learned 8 Materials zone layouts 1495 | -10/Mines | Deemed a non-threat by the Exiles lab entrance 1496 | -10/Mines | Discovered new exit (range 5) 1606 | -10/Mines | Learned location of Storage (-8) 1674 | -10/Mines | Assembled infested the area 1679 | -10/Mines | Assisted by a Guerilla fighting off Assembled 1712 | -10/Mines | Core integrity fell below 20% 1797 | -10/Mines | Received a Rocket Launcher from a helpful Derelict 1849 | -10/Mines | Learned Materials stockpile data 1965 | -10/Mines | Discovered new exit (range 10) 2029 | -10/Mines | A weapon hastily lodged in a ceiling crevice suddenly fell to the ground 2067 | -10/Mines | Destroyed self with Light Ion Engine chain reaction Last Messages --------------- 01959_ Acquired 76 matter. 01965_ EXIT=FOUND 02012_ Searching scrap... 02012_ Found Med. Laser. 02012_ Found EM Pulse Gun. 02012_ Found Hcp. Storage Unit. 02012_ Found 36 Matter. 02013_ Acquired 36 matter. 02014_ Dropped Lrg. Storage Unit. 02017_ Acquired EM Pulse Gun. 02029_ A Battle Cannon has been hastily shoved under some rubble with a note attached: "To battle!" 02032_ Acquired Battle Cannon. 02038_ R-06 Scavenger collects Lrg. Storage Unit. 02064_ S-10 Pest destroyed. 02064_ Switching to secondary target: S-10 Pest. 02064_ S-10 Pest destroyed. 02065_ K-01 Serf collects debris. 02067_ Chain reaction triggered in Lgt. Ion Engine. 02067_ S-10 Pest destroyed. Map ----- +----------------------------------------------------+ | | | | | | | | | | | | | | | | | | | | | | | | | | | | | | | ??????????????????????????????????????????????? | | ??????????????????????????????????????????????? | | ??????????????????????????????????????????????? | | #?????????????????????????????????????????????? | | ##????????????????????????????????????????????? | | #????????????????????????????????????????????? | | ######???????????????????????????????????????? | | ## ##?????# ########### #????????? | | ##????# [% """ ??????????? | | ###??# #####%;#### """ ??????????? | | ## ##????????????#@;???????????????????? | | ?## #????????????#k#??????????????##???? | | ??## ##???????????#=#?????????????? ##??? | | ???## ####????????# #????????????? ##?? | | ????### ##??????## #####????????? #?? | | ??????## #?????## ##??????? #?? | | ???????## #?????# ##?????# #?? | | ????????##### ##????# #??### #?? | | ???????????## ####?## #### #??? | | ???????????# ##### #??? | | ??????????## [ ##??? | | ?????????## ## #### ###???? | | ?????????# ######### #??# ##?????? | | ??####???# ##???????# ##?## #??????? | | ### ##??## #????????# ##### #??????? | | ##?## ##??????# ### ##??????? | | ### ######?# ### ##???????? | | ## #?## ##?# ##???????? | | # ### #??####??## < ##??????? | | # ### ##?# ######???## #??????? | | #####?## ##??# #?### #??????? | | ???????### #???###### ### #??????? | | ?????????## #????##### ## #??????? | | ??????????# #????# #??????? | | ??????????## #??## ### #??????? | +----------------------------------------------------+ Best States ------------- Heat Dissipation 35 Energy Generation 10 Energy Capacity 250 Matter Stores 300 Matter Capacity 300 Sight Range 16 Terrain Scan Range 16 Terrain Scan Density 10 Armor Coverage 150 Evasion (%) 55 Recoil Reduction 2 Item Schematics ----------------- None Robot Schematics ------------------ None Fabricated ------------ Nothing Alien Tech Used ----------------- None Achievements -------------- None Challenges ------------ None Game ------ Seed DefenseContainmentMegatreads Manual? 0 Play Time 00:21:36 Cumulative 482.8 hours Start 2023.02.24 @ 16:57:21 End 2023.02.24 @ 17:25:42 Sessions 1 Manual Loads 0 Difficulty Rogue Special Mode None Game No. 355 Rogue 355 Adventurer 0 Explorer 0 Win Type - Total 1 Types 1/0/0/0/0/0/0/0/0 Lore% 69 Gallery% 76 Achievement% 57 Wizard Run 0 Options --------- ASCII 0 Keyboard 0 Movement Mouse Keybinds 0 Fullscreen 1 Font 16/SmallcapsGlow Map View 75x55 Tactical HUD 1 Map Filters NONE Filters NONE Steam 1 RUN: 8fcd7882-101f-4b33-a8fc-cf99d87ca1be